fUST/lending_fUST_20241108
["ID","MTS","AMOUNT","RATE_DAILY","PERIOD"]
[341631018,1731046250197,-500.0,0.00022465,2]
[341631019,1731046250207,-500.0,0.00022465,2]
[341631020,1731046250216,-500.0,0.00022465,2]
[341631021,1731046250225,-808.1,0.00022465,2]
[341631022,1731046250234,-500.0,0.00022465,2]
[341631023,1731046250244,-500.0,0.00022465,2]
[341631024,1731046250252,-500.0,0.00022465,2]
[341631025,1731046250262,-500.0,0.00022465,2]
[341631026,1731046250271,-500.0,0.00022465,2]
[341631027,1731046250280,-704.64,0.00022465,2]
[341631028,1731046250292,-500.0,0.00022465,2]
[341631029,1731046250301,-500.0,0.00022465,2]
[341631030,1731046250310,-500.0,0.00022465,2]
[341631031,1731046250319,-5186.79,0.00022465,2]
[341631032,1731046250328,-500.0,0.00022465,2]
[341631033,1731046250399,-500.0,0.00022465,2]
[341631034,1731046250409,-500.0,0.00022465,2]
[341631035,1731046250418,-500.0,0.00022465,2]
[341631036,1731046250427,-500.0,0.00022465,2]
[341631037,1731046250437,-500.0,0.00022465,2]
[341631038,1731046250447,-500.0,0.00022465,2]
[341631039,1731046250455,-500.0,0.00022465,2]
[341631040,1731046250465,-500.0,0.00022465,2]
[341631041,1731046250474,-500.0,0.00022465,2]
[341631042,1731046250484,-500.0,0.00022465,2]
[341631043,1731046250493,-500.0,0.00022465,2]
[341631044,1731046250504,-500.0,0.00022465,2]
[341631045,1731046250513,-500.0,0.00022465,2]
[341631046,1731046250523,-287.48196514,0.00022465,2]
[341631047,1731046250533,-613.27546781,0.00022465,2]
[341631048,1731046250543,-606.07311427,0.00022739,2]
[341631049,1731046250552,-188.69965266,0.00022739,2]
[341631050,1731046250561,-500.0,0.00022739,2]
[341631051,1731046250573,-287.8630859,0.00022739,2]
[341631052,1731046250582,-500.0,0.00022739,2]
[341631053,1731046250592,-500.0,0.00022739,2]
[341631054,1731046250602,-500.0,0.00022739,2]
[341631055,1731046250611,-500.0,0.00022739,2]
[341631056,1731046250621,-500.0,0.00022739,2]
[341631057,1731046250630,-500.0,0.00022739,2]
[341631058,1731046250639,-500.0,0.00022739,2]
[341631059,1731046250648,-500.0,0.00022739,2]
[341631060,1731046250658,-500.0,0.00022739,2]
[341631061,1731046250667,-500.0,0.00022739,2]
[341631062,1731046250676,-500.0,0.00022739,2]
[341631063,1731046250685,-500.0,0.00022739,2]
[341631064,1731046250694,-500.0,0.00022739,2]
[341631065,1731046250703,-500.0,0.00022739,2]
[341631066,1731046250713,-628.56391685,0.00022739,2]
[341631067,1731046250722,-500.0,0.00022739,2]
[341631068,1731046250732,-500.0,0.00022739,2]
[341631069,1731046250741,-500.0,0.00022739,2]
[341631070,1731046250750,-500.0,0.00022739,2]
[341631071,1731046250760,-500.0,0.00022739,2]
[341631072,1731046250769,-500.0,0.00022739,2]
[341631073,1731046250779,-574.52,0.00022739,2]
[341631074,1731046250790,-613.26,0.00022739,2]
[341631075,1731046250800,-500.0,0.00022739,2]
[341631076,1731046250809,-500.0,0.00022739,2]
[341631077,1731046250818,-500.0,0.00022739,2]
[341631078,1731046250827,-500.0,0.00022739,2]
[341631079,1731046250837,-862.58,0.00022739,2]
[341631080,1731046250848,-500.0,0.00022739,2]
[341631081,1731046250859,-500.0,0.00022739,2]
[341631082,1731046250868,-500.0,0.00022739,2]
[341631083,1731046250879,-500.0,0.00022739,2]
[341631084,1731046250888,-521.6,0.00022739,2]
[341631085,1731046250898,-500.0,0.00022739,2]
[341631086,1731046250907,-528.40130365,0.00022739,2]
[341631087,1731046250917,-500.0,0.00022739,2]
[341631088,1731046250927,-500.0,0.00022739,2]
[341631089,1731046250936,-500.0,0.00022739,2]
[341631090,1731046250945,-287.53058818,0.00022739,2]
[341631091,1731046250955,-500.0,0.00022739,2]
[341631092,1731046250964,-500.0,0.00022739,2]
[341631093,1731046250973,-500.0,0.00022739,2]
[341631094,1731046250983,-500.0,0.00022739,2]
[341631095,1731046250992,-500.0,0.00022739,2]
[341631096,1731046251001,-583.9858738,0.00022739,2]
[341631097,1731046251011,-500.0,0.00022739,2]
[341631098,1731046251020,-500.0,0.00022739,2]
[341631099,1731046251029,-519.40952863,0.00022739,2]
[341631100,1731046251040,-500.0,0.00022739,2]
[341631101,1731046251050,-500.0,0.00022739,2]
[341631102,1731046251059,-506.14,0.00022739,2]
[341631103,1731046251069,-500.0,0.00022739,2]
[341631104,1731046251078,-247.05859454,0.00022739,2]
[341631105,1731046251088,-500.0,0.00022739,2]
[341631106,1731046251100,-500.0,0.00022739,2]
[341631107,1731046251109,-500.0,0.00022739,2]
[341631108,1731046251118,-500.0,0.00022739,2]
[341631109,1731046251128,-500.0,0.00022739,2]
[341631110,1731046251137,-500.0,0.00022739,2]
[341631111,1731046251146,-500.0,0.00022739,2]
[341631112,1731046251155,-500.0,0.00022739,2]
[341631113,1731046251164,-500.0,0.00022739,2]
[341631114,1731046251174,-500.0,0.00022739,2]
[341631115,1731046251183,-500.0,0.00022739,2]
[341631116,1731046251192,-500.0,0.00022739,2]
[341631117,1731046251201,-500.0,0.00022739,2]
[341631118,1731046251210,-500.0,0.00022739,2]
[341631119,1731046251219,-500.0,0.00022739,2]
[341631120,1731046251228,-500.0,0.00022739,2]
[341631121,1731046251237,-500.0,0.00022739,2]
[341631122,1731046251246,-500.0,0.00022739,2]
[341631123,1731046251255,-500.0,0.00022739,2]
[341631124,1731046251265,-500.0,0.00022739,2]
[341631125,1731046251274,-500.0,0.00022739,2]
[341631126,1731046251284,-500.0,0.00022739,2]
[341631127,1731046251293,-500.0,0.00022739,2]
[341631128,1731046251302,-500.0,0.00022739,2]
[341631129,1731046251311,-500.0,0.00022739,2]
[341631130,1731046251321,-500.0,0.00022739,2]
[341631131,1731046251331,-500.0,0.00022739,2]
[341631132,1731046251341,-2049.12,0.00022739,2]
[341631133,1731046251352,-500.0,0.00022739,2]
[341631134,1731046251361,-500.0,0.00022739,2]
[341631135,1731046251370,-500.0,0.00022739,2]
[341631136,1731046251379,-500.0,0.00022739,2]
[341631137,1731046251388,-724.39,0.00022739,2]
[341631138,1731046251397,-500.0,0.00022739,2]
[341631139,1731046251406,-500.0,0.00022739,2]
[341631140,1731046251415,-500.0,0.00022739,2]
[341631141,1731046251424,-500.0,0.00022739,2]
[341631142,1731046251433,-153.24891056,0.00022739,2]
[341631143,1731046251503,-1365.97,0.00022739,2]
[341631144,1731046251513,-838.49,0.00022739,2]
[341631145,1731046251522,-151.0,0.00022739,7]
[341631146,1731046251532,-500.0,0.00022739,2]
[341631147,1731046251542,-500.0,0.00022739,2]
[341631148,1731046251551,-518.48,0.00022739,2]
[341631149,1731046251561,-961.2,0.00022739,2]
[341631150,1731046251570,-500.0,0.00022739,2]
[341631151,1731046251579,-500.0,0.00022739,2]
[341631152,1731046251589,-787.44,0.00022739,2]
[341631153,1731046251598,-1571.77,0.00022739,2]
[341631154,1731046251607,-674.44,0.00022739,2]
[341631155,1731046251616,-500.0,0.00022739,2]
[341631156,1731046251625,-152.900332,0.00022739,7]
[341631157,1731046251634,-152.900332,0.00022739,7]
[341631158,1731046251643,-500.0,0.00022739,2]
[341631159,1731046251652,-500.0,0.00022739,2]
[341631160,1731046251661,-11094.74,0.00022739,2]
[341631161,1731046251670,-364.100495,0.00022739,7]
[341631162,1731046251679,-500.0,0.00022739,2]
[341631163,1731046251689,-500.0,0.00022739,2]
[341631164,1731046251698,-364.100495,0.00022739,7]
[341631165,1731046251707,-500.0,0.00022739,2]
[341631166,1731046251715,-500.0,0.00022739,2]
[341631167,1731046251725,-500.0,0.00022739,2]
[341631168,1731046251734,-591.78387066,0.00022739,2]
[341631169,1731046251744,-500.0,0.00022739,2]
[341631170,1731046251753,-500.0,0.00022739,2]
[341631171,1731046251763,-11091.71,0.00022739,2]
[341631172,1731046251772,-500.0,0.00022739,2]
[341631173,1731046251781,-238.058814,0.00022739,7]
[341631174,1731046251790,-5948.24,0.00022739,2]
[341631175,1731046251799,-238.058814,0.00022739,7]
[341631176,1731046251808,-500.0,0.00022739,2]
[341631177,1731046251818,-179.93202,0.00022739,7]
[341631178,1731046251827,-179.93202,0.00022739,7]
[341631179,1731046251836,-500.0,0.00022739,2]
[341631180,1731046251846,-526.22017343,0.00022739,2]
[341631181,1731046251855,-500.0,0.00022739,2]
[341631182,1731046251864,-3608.36,0.00022739,2]
[341631183,1731046251873,-1084.19,0.00022739,2]
[341631184,1731046251883,-3337.23,0.00022739,2]
[341631185,1731046251892,-500.0,0.00022739,2]
[341631186,1731046251902,-151.0,0.00022739,7]
[341631187,1731046251913,-618.86,0.00022739,2]
[341631188,1731046251922,-823.08,0.00022739,2]
[341631189,1731046251931,-276.217914,0.00022739,7]
[341631190,1731046251941,-151.0,0.00022739,7]
[341631191,1731046251952,-276.217914,0.00022739,7]
[341631192,1731046251960,-255.016608,0.00022739,7]
[341631193,1731046251970,-151.0,0.00022739,7]
[341631194,1731046251986,-1104.35,0.00022739,2]
[341631195,1731046252005,-331.649749,0.00022739,7]
[341631196,1731046252022,-500.0,0.00022739,2]
[341631197,1731046252041,-331.649749,0.00022739,7]
[341631198,1731046252058,-500.0,0.00022739,2]
[341631199,1731046252076,-500.0,0.00022739,2]
[341631200,1731046252096,-500.0,0.00022739,2]
[341631201,1731046252110,-500.0,0.00022739,2]
[341631202,1731046252127,-441.88722109,0.00022739,2]
[341631203,1731046252145,-500.0,0.00022739,2]
[341631204,1731046252187,-500.0,0.00022739,2]
[341631205,1731046252201,-488.58438961,0.00022739,2]
[341631206,1731046252220,-500.0,0.00022739,2]
[341631207,1731046252241,-500.0,0.00022739,2]
[341631208,1731046252261,-1116.12,0.00022739,2]
[341631209,1731046252277,-500.0,0.00022739,2]
[341631210,1731046252295,-500.0,0.00022739,2]
[341631211,1731046252317,-250.0,0.00022739,2]
[341631212,1731046252336,-517.33548939,0.00022739,2]
[341631213,1731046252353,-588.563748,0.00022739,7]
[341631214,1731046252370,-151.0,0.00022739,7]
[341631215,1731046252385,-588.563748,0.00022739,7]
[341631216,1731046252400,-896.4,0.00022739,2]
[341631217,1731046252415,-500.0,0.00022739,2]
[341631218,1731046252429,-308.09432832,0.00022739,2]
[341631219,1731046252443,-500.0,0.00022739,2]
[341631220,1731046252457,-500.0,0.00022739,2]
[341631221,1731046252471,-1260.361495,0.00022739,7]
[341631222,1731046252485,-500.0,0.00022739,2]
[341631223,1731046252499,-151.0,0.00022739,7]
[341631224,1731046252513,-500.0,0.00022739,2]
[341631225,1731046252528,-1260.361495,0.00022739,7]
[341631226,1731046252543,-151.0,0.00022739,7]
[341631227,1731046252556,-500.0,0.00022739,2]
[341631228,1731046252570,-500.0,0.00022739,2]
[341631229,1731046252584,-500.0,0.00022739,2]
[341631230,1731046252598,-808.1,0.00022739,2]
[341631231,1731046252612,-220.067827,0.00022739,7]
[341631232,1731046252625,-155.866321,0.00022739,7]
[341631233,1731046252639,-500.0,0.00022739,2]
[341631234,1731046252652,-220.067827,0.00022739,7]
[341631235,1731046252666,-533.23253944,0.00022739,2]
[341631236,1731046252680,-500.0,0.00022739,2]
[341631237,1731046252693,-500.0,0.00022739,2]
[341631238,1731046252708,-500.0,0.00022739,2]
[341631239,1731046252721,-704.64,0.00022739,2]
[341631240,1731046252736,-500.0,0.00022739,2]
[341631241,1731046252748,-180.825533,0.00022739,7]
[341631242,1731046252758,-500.0,0.00022739,2]
[341631243,1731046252767,-500.0,0.00022739,2]
[341631244,1731046252879,-5186.79,0.00022739,2]
[341631245,1731046252896,-500.0,0.00022739,2]
[341631246,1731046252906,-180.825533,0.00022739,7]
[341631247,1731046252917,-304.553065,0.00022739,7]
[341631248,1731046252927,-500.0,0.00022739,2]
[341631249,1731046252937,-1949.61643,0.00022739,7]
[341631250,1731046252947,-500.0,0.00022739,2]
[341631251,1731046252956,-500.0,0.00022739,2]
[341631252,1731046252966,-500.0,0.00022739,2]
[341631253,1731046252977,-151.0,0.00022739,7]
[341631254,1731046252986,-500.0,0.00022739,2]
[341631255,1731046252996,-1949.61643,0.00022739,7]
[341631256,1731046253006,-500.0,0.00022739,2]
[341631257,1731046253015,-256.983352,0.00022739,7]
[341631258,1731046253025,-500.0,0.00022739,2]
[341631259,1731046253035,-500.0,0.00022739,2]
[341631260,1731046253044,-256.983352,0.00022739,7]
[341631261,1731046253053,-500.0,0.00022739,2]
[341631262,1731046253062,-304.553065,0.00022739,7]
[341631263,1731046253071,-500.0,0.00022739,2]
[341631264,1731046253081,-500.0,0.00022739,2]
[341631265,1731046253091,-500.0,0.00022739,2]
[341631266,1731046253102,-487.27084624,0.00022739,2]
[341631267,1731046253110,-182.0,0.00022751,2]
[341631268,1731046253120,-904.20448524,0.00023,2]
[341631269,1731046253129,-500.0,0.00023013,2]
[341631270,1731046253139,-338.28339356,0.00023013,2]
[341631271,1731046253148,-500.0,0.00023013,2]
[341631272,1731046253157,-500.0,0.00023013,2]
[341631273,1731046253166,-500.0,0.00023013,2]
[341631274,1731046253178,-500.0,0.00023013,2]
[341631275,1731046253187,-500.0,0.00023013,2]
[341631276,1731046253196,-500.0,0.00023013,2]
[341631277,1731046253206,-500.0,0.00023013,2]
[341631278,1731046253215,-500.0,0.00023013,2]
[341631279,1731046253224,-500.0,0.00023013,2]
[341631280,1731046253233,-536.013328,0.00023013,2]
[341631281,1731046253242,-500.0,0.00023013,2]
[341631282,1731046253251,-500.0,0.00023013,2]
[341631283,1731046253260,-500.0,0.00023013,2]
[341631284,1731046253269,-500.0,0.00023013,2]
[341631285,1731046253279,-500.0,0.00023013,2]
[341631286,1731046253288,-537.79849841,0.00023013,2]
[341631287,1731046253298,-500.0,0.00023013,2]
[341631288,1731046253306,-532.19404274,0.00023013,2]
[341631289,1731046253315,-500.0,0.00023013,2]
[341631290,1731046253325,-574.52,0.00023013,2]
[341631291,1731046253335,-613.26,0.00023013,2]
[341631292,1731046253344,-500.0,0.00023013,2]
[341631293,1731046253353,-578.54869807,0.00023013,2]
[341631294,1731046253363,-500.0,0.00023013,2]
[341631295,1731046253372,-500.0,0.00023013,2]
[341631296,1731046253381,-862.58,0.00023013,2]
[341631297,1731046253391,-500.0,0.00023013,2]
[341631298,1731046253400,-500.0,0.00023013,2]
[341631299,1731046253409,-500.0,0.00023013,2]
[341631300,1731046253418,-500.0,0.00023013,2]
[341631301,1731046253427,-521.6,0.00023013,2]
[341631302,1731046253436,-500.0,0.00023013,2]
[341631303,1731046253445,-541.14863781,0.00023013,2]
[341631304,1731046253454,-500.0,0.00023013,2]
[341631305,1731046253463,-500.0,0.00023013,2]
[341631306,1731046253472,-500.0,0.00023013,2]
[341631307,1731046253481,-500.0,0.00023013,2]
[341631308,1731046253490,-522.27278293,0.00023013,2]
[341631309,1731046253500,-500.0,0.00023013,2]
[341631310,1731046253509,-290.42593584,0.00023013,2]
[341631311,1731046253518,-500.0,0.00023013,2]
[341631312,1731046253527,-500.0,0.00023013,2]
[341631313,1731046253537,-500.0,0.00023013,2]
[341631314,1731046253546,-500.0,0.00023013,2]
[341631315,1731046253555,-506.14,0.00023013,2]
[341631316,1731046253564,-370.32628358,0.00023013,2]
[341631317,1731046253573,-500.0,0.00023013,2]
[341631318,1731046253583,-500.0,0.00023013,2]
[341631319,1731046253592,-500.0,0.00023013,2]
[341631320,1731046253601,-500.0,0.00023013,2]
[341631321,1731046253611,-500.0,0.00023013,2]
[341631322,1731046253620,-500.0,0.00023013,2]
[341631323,1731046253629,-500.0,0.00023013,2]
[341631324,1731046253639,-500.0,0.00023013,2]
[341631325,1731046253648,-500.0,0.00023013,2]
[341631326,1731046253658,-500.0,0.00023013,2]
[341631327,1731046253667,-500.0,0.00023013,2]
[341631328,1731046253677,-203.398043,0.00023013,7]
[341631329,1731046253686,-500.0,0.00023013,2]
[341631330,1731046253696,-500.0,0.00023013,2]
[341631331,1731046253705,-500.0,0.00023013,2]
[341631332,1731046253715,-500.0,0.00023013,2]
[341631333,1731046253724,-376.920108,0.00023013,7]
[341631334,1731046253733,-500.0,0.00023013,2]
[341631335,1731046253743,-500.0,0.00023013,2]
[341631336,1731046253752,-376.920108,0.00023013,7]
[341631337,1731046253762,-500.0,0.00023013,2]
[341631338,1731046253771,-151.0,0.00023013,7]
[341631339,1731046253781,-585.64495863,0.00023013,2]
[341631340,1731046253792,-151.0,0.00023013,7]
[341631341,1731046253801,-500.0,0.00023013,2]
[341631342,1731046253811,-151.0,0.00023013,7]
[341631343,1731046253820,-500.0,0.00023013,2]
[341631344,1731046253829,-151.0,0.00023013,7]
[341631345,1731046253839,-500.0,0.00023013,2]
[341631346,1731046253851,-500.0,0.00023013,2]
[341631347,1731046253860,-500.0,0.00023013,2]
[341631348,1731046253871,-500.0,0.00023013,2]
[341631349,1731046253880,-500.0,0.00023013,2]
[341631350,1731046253889,-500.0,0.00023013,2]
[341631351,1731046253899,-151.0,0.00023013,7]
[341631352,1731046253909,-2049.12,0.00023013,2]
[341631353,1731046253918,-500.0,0.00023013,2]
[341631354,1731046253928,-153.371672,0.00023013,7]
[341631355,1731046253937,-500.0,0.00023013,2]
[341631356,1731046253947,-500.0,0.00023013,2]
[341631357,1731046253956,-500.0,0.00023013,2]
[341631358,1731046253966,-724.39,0.00023013,2]
[341631359,1731046253975,-500.0,0.00023013,2]
[341631360,1731046253984,-500.0,0.00023013,2]
[341631361,1731046253993,-500.0,0.00023013,2]
[341631362,1731046254002,-500.0,0.00023013,2]
[341631363,1731046254012,-1101.434435,0.00023013,7]
[341631364,1731046254021,-1365.97,0.00023013,2]
[341631365,1731046254030,-1101.434435,0.00023013,7]
[341631366,1731046254041,-838.49,0.00023013,2]
[341631367,1731046254050,-500.0,0.00023013,2]
[341631368,1731046254060,-500.0,0.00023013,2]
[341631369,1731046254069,-518.48,0.00023013,2]
[341631370,1731046254078,-961.2,0.00023013,2]
[341631371,1731046254088,-500.0,0.00023013,2]
[341631372,1731046254101,-500.0,0.00023013,2]
[341631373,1731046254110,-151.0,0.00023013,7]
[341631374,1731046254119,-787.44,0.00023013,2]
[341631375,1731046254129,-1571.77,0.00023013,2]
[341631376,1731046254138,-674.44,0.00023013,2]
[341631377,1731046254148,-500.0,0.00023013,2]
[341631378,1731046254158,-500.0,0.00023013,2]
[341631379,1731046254167,-500.0,0.00023013,2]
[341631380,1731046254176,-11094.74,0.00023013,2]
[341631381,1731046254186,-500.0,0.00023013,2]
[341631382,1731046254195,-500.0,0.00023013,2]
[341631383,1731046254204,-500.0,0.00023013,2]
[341631384,1731046254214,-500.0,0.00023013,2]
[341631385,1731046254223,-500.0,0.00023013,2]
[341631386,1731046254232,-500.0,0.00023013,2]
[341631387,1731046254241,-500.0,0.00023013,2]
[341631388,1731046254250,-11091.71,0.00023013,2]
[341631389,1731046254259,-500.0,0.00023013,2]
[341631390,1731046254269,-5948.24,0.00023013,2]
[341631391,1731046254278,-500.0,0.00023013,2]
[341631392,1731046254287,-500.0,0.00023013,2]
[341631393,1731046254296,-3608.36,0.00023013,2]
[341631394,1731046254305,-500.0,0.00023013,2]
[341631395,1731046254314,-1084.19,0.00023013,2]
[341631396,1731046254323,-3337.23,0.00023013,2]
[341631397,1731046254332,-500.0,0.00023013,2]
[341631398,1731046254342,-618.86,0.00023013,2]
[341631399,1731046254351,-657.09324392,0.00023013,2]
[341631400,1731046254583,-165.98675608,0.00023013,2]
[341631401,1731046254592,-1104.35,0.00023013,2]
[341631402,1731046254602,-500.0,0.00023013,2]
[341631403,1731046254611,-500.0,0.00023013,2]
[341631404,1731046254620,-500.0,0.00023013,2]
[341631405,1731046254629,-500.0,0.00023013,2]
[341631406,1731046254638,-500.0,0.00023013,2]
[341631407,1731046254647,-500.0,0.00023013,2]
[341631408,1731046254656,-443.50992072,0.00023013,2]
[341631409,1731046254738,-56.49007928,0.00023013,2]
[341631410,1731046254748,-500.0,0.00023013,2]
[341631411,1731046254757,-500.0,0.00023013,2]
[341631412,1731046254766,-1116.12,0.00023013,2]
[341631413,1731046254776,-500.0,0.00023013,2]
[341631414,1731046254786,-500.0,0.00023013,2]
[341631415,1731046254796,-250.0,0.00023013,2]
[341631416,1731046254805,-896.4,0.00023013,2]
[341631417,1731046254814,-500.0,0.00023013,2]
[341631418,1731046254823,-500.0,0.00023013,2]
[341631419,1731046254833,-500.0,0.00023013,2]
[341631420,1731046254842,-500.0,0.00023013,2]
[341631421,1731046254852,-500.0,0.00023013,2]
[341631422,1731046254862,-500.0,0.00023013,2]
[341631423,1731046254872,-500.0,0.00023013,2]
[341631424,1731046254881,-500.0,0.00023013,2]
[341631425,1731046254891,-808.1,0.00023013,2]
[341631426,1731046254900,-500.0,0.00023013,2]
[341631427,1731046254909,-500.0,0.00023013,2]
[341631428,1731046254918,-500.0,0.00023013,2]
[341631429,1731046254928,-500.0,0.00023013,2]
[341631430,1731046254938,-704.64,0.00023013,2]
[341631431,1731046254947,-500.0,0.00023013,2]
[341631432,1731046254957,-547.52591499,0.00023013,2]
[341631433,1731046254966,-500.0,0.00023013,2]
[341631434,1731046254975,-2743.56922334,0.00023013,2]
[341631435,1731046254988,-2443.22077666,0.00023013,2]
[341631436,1731046254998,-500.0,0.00023013,2]
[341631437,1731046255008,-500.0,0.00023013,2]
[341631438,1731046255018,-500.0,0.00023013,2]
[341631439,1731046255028,-500.0,0.00023013,2]
[341631440,1731046255039,-500.0,0.00023013,2]
[341631441,1731046255048,-500.0,0.00023013,2]
[341631442,1731046255058,-500.0,0.00023013,2]
[341631443,1731046255067,-500.0,0.00023013,2]
[341631444,1731046255077,-500.0,0.00023013,2]
[341631445,1731046255087,-500.0,0.00023013,2]
[341631446,1731046255102,-500.0,0.00023013,2]
[341631447,1731046255111,-500.0,0.00023013,2]
[341631448,1731046255121,-500.0,0.00023013,2]
[341631449,1731046255131,-13430.17922334,0.00023054,2]
[341631450,1731046257896,-7352.50102082,0.00023054,2]
[341631451,1731046257906,-588.563748,0.00023054,7]
[341631452,1731046257916,-588.563748,0.00023054,7]
[341631453,1731046257926,-151.0,0.00023054,7]
[341631454,1731046257935,-155.37786681,0.00023054,7]
[341631455,1731046257945,-220.067827,0.00023054,7]
[341631456,1731046257955,-220.067827,0.00023054,7]
[341631457,1731046257966,-180.825533,0.00023054,7]
[341631458,1731046257976,-180.825533,0.00023054,7]
[341631459,1731046257987,-304.553065,0.00023054,7]
[341631460,1731046257997,-256.983352,0.00023054,7]
[341631461,1731046258008,-256.983352,0.00023054,7]
[341631462,1731046258018,-304.553065,0.00023054,7]
[341631463,1731046258028,-500.0,0.00023268,2]
[341631464,1731046258038,-500.0,0.00023268,2]
[341631465,1731046258049,-502.25963348,0.00023268,2]
[341631466,1731046258059,-500.0,0.00023268,2]
[341631467,1731046258069,-500.0,0.00023268,2]
[341631468,1731046258079,-500.0,0.00023268,2]
[341631469,1731046258089,-500.0,0.00023268,2]
[341631470,1731046258102,-288.88660166,0.00023287,2]
[341631471,1731046258111,-500.0,0.00023287,2]
[341631472,1731046258121,-500.0,0.00023287,2]
[341631473,1731046258130,-500.0,0.00023287,2]
[341631474,1731046258139,-500.0,0.00023287,2]
[341631475,1731046258148,-500.0,0.00023287,2]
[341631476,1731046258158,-534.38330225,0.00023287,2]
[341631477,1731046258167,-500.0,0.00023287,2]
[341631478,1731046258177,-201.95310859,0.00023287,2]
[341631479,1731046258187,-500.0,0.00023287,2]
[341631480,1731046258197,-500.0,0.00023287,2]
[341631481,1731046258207,-500.0,0.00023287,2]
[341631482,1731046258216,-500.0,0.00023287,2]
[341631483,1731046258225,-304.7056378,0.00023287,2]
[341631484,1731046258235,-500.0,0.00023287,2]
[341631485,1731046258245,-500.0,0.00023287,2]
[341631486,1731046258254,-500.0,0.00023287,2]
[341631487,1731046258263,-574.52,0.00023287,2]
[341631488,1731046258273,-613.26,0.00023287,2]
[341631489,1731046258282,-500.0,0.00023287,2]
[341631490,1731046258293,-536.15918982,0.00023287,2]
[341631491,1731046258305,-151.0,0.00023287,7]
[341631492,1731046258316,-151.0,0.00023287,7]
[341631493,1731046258325,-151.0,0.00023287,7]
[341631494,1731046258334,-500.0,0.00023287,2]
[341631495,1731046258344,-862.58,0.00023287,2]
[341631496,1731046258354,-461.63341102,0.00023287,2]
[341631497,1731046258364,-500.0,0.00023287,2]
[341631498,1731046258374,-500.0,0.00023287,2]
[341631499,1731046258383,-500.0,0.00023287,2]
[341631500,1731046258394,-521.6,0.00023287,2]
[341631501,1731046258404,-608.90226024,0.00023287,2]
[341631502,1731046258413,-500.0,0.00023287,2]
[341631503,1731046258422,-500.0,0.00023287,2]
[341631504,1731046258432,-500.0,0.00023287,2]
[341631505,1731046258441,-515.84002688,0.00023287,2]
[341631506,1731046258450,-500.0,0.00023287,2]
[341631507,1731046258460,-500.0,0.00023287,2]
[341631508,1731046258469,-500.0,0.00023287,2]
[341631509,1731046258479,-521.154144,0.00023287,7]
[341631510,1731046258488,-521.154144,0.00023287,7]
[341631511,1731046258497,-500.0,0.00023287,2]
[341631512,1731046258507,-500.0,0.00023287,2]
[341631513,1731046258516,-506.14,0.00023287,2]
[341631514,1731046258526,-151.0,0.00023287,7]
[341631515,1731046258535,-500.0,0.00023287,2]
[341631516,1731046258548,-602.251348,0.00023287,7]
[341631517,1731046258558,-500.0,0.00023287,2]